fUSD/lending_fUSD_20241206
["ID","MTS","AMOUNT","RATE_DAILY","PERIOD"]
[344428924,1733454669424,-750.0,0.00027,2]
[344428925,1733454669434,-750.0,0.00027,2]
[344428926,1733454669443,-2081.617757,0.0002701,2]
[344428927,1733454669453,-2110.0,0.00027013,2]
[344428928,1733454669462,-43406.196467,0.00027047,4]
[344428929,1733454669472,-150.0,0.00027048,120]
[344428930,1733454669482,-1500.0,0.00027075,7]
[344428931,1733454669491,-150.0,0.00027086,120]
[344428932,1733454669501,-3505.37,0.00027123,2]
[344428933,1733454669511,-333.120505,0.00027148,11]
[344428934,1733454669520,-200.0,0.00027152,120]
[344428935,1733454669530,-1500.0,0.00027156,7]
[344428936,1733454669540,-500.0,0.00027191,120]
[344428937,1733454669549,-687.34091321,0.0002722,30]
[344428938,1733454669559,-187.20624909,0.0002722,30]
[344428939,1733454669568,-1500.0,0.00027236,7]
[344428940,1733454669578,-600.0,0.000273,30]
[344428941,1733454669587,-600.0,0.000273,30]
[344428942,1733454669598,-500.0,0.000273,30]
[344428943,1733454669607,-600.0,0.000273,30]
[344428944,1733454669617,-600.0,0.000273,30]
[344428945,1733454669626,-600.0,0.000273,30]
[344428946,1733454669636,-600.0,0.000273,30]
[344428947,1733454669645,-600.0,0.000273,30]
[344428948,1733454669655,-600.0,0.000273,30]
[344428949,1733454669664,-600.0,0.000273,30]
[344428950,1733454669674,-600.0,0.000273,30]
[344428951,1733454669683,-600.0,0.000273,30]
[344428952,1733454669692,-600.0,0.000273,30]
[344428953,1733454669702,-600.0,0.000273,30]
[344428954,1733454669711,-500.0,0.000273,30]
[344428955,1733454669721,-810.0,0.000273,30]
[344428956,1733454669731,-273.80967763,0.000273,30]
[344428957,1733454669740,-500.0,0.000273,30]
[344428958,1733454669749,-600.0,0.000273,30]
[344428959,1733454669759,-600.0,0.000273,30]
[344428960,1733454669768,-600.0,0.000273,30]
[344428961,1733454669778,-207.85937023,0.000273,30]
[344428962,1733454669787,-969.00614966,0.000273,30]
[344428963,1733454669797,-600.0,0.000273,30]
[344428964,1733454669807,-600.0,0.000273,30]
[344428965,1733454669816,-600.0,0.000273,30]
[344428966,1733454669826,-600.0,0.000273,30]
[344428967,1733454669836,-500.0,0.000273,30]
[344428968,1733454669846,-600.0,0.000273,30]
[344428969,1733454669855,-500.0,0.000273,30]
[344428970,1733454669865,-600.0,0.000273,30]
[344428971,1733454669877,-500.0,0.000273,30]
[344428972,1733454669888,-600.0,0.000273,30]
[344428973,1733454669897,-159.06742947,0.000273,30]
[344428974,1733454669906,-600.0,0.000273,30]
[344428975,1733454669916,-600.0,0.000273,30]
[344428976,1733454669926,-297.18724899,0.000273,30]
[344428977,1733454669936,-600.0,0.000273,30]
[344428978,1733454669945,-162.83101403,0.000273,30]
[344428979,1733454669956,-600.0,0.000273,30]
[344428980,1733454669965,-500.0,0.000273,30]
[344428981,1733454669978,-500.0,0.000273,30]
[344428982,1733454669987,-997.2,0.000273,30]
[344428983,1733454669997,-500.0,0.000273,30]
[344428984,1733454670016,-500.0,0.000273,30]
[344428985,1733454670026,-473.21871603,0.000273,30]
[344428986,1733454670036,-156.73589217,0.000273,30]
[344428987,1733454670046,-514.9446563,0.000273,30]
[344428988,1733454670056,-159.29492967,0.000273,30]
[344428989,1733454670066,-985.295649,0.000273,30]
[344428990,1733454670075,-500.0,0.000273,30]
[344428991,1733454670085,-159.96989195,0.000273,30]
[344428992,1733454670095,-500.7,0.000273,30]
[344428993,1733454670104,-500.0,0.000273,30]
[344428994,1733454670113,-938.18789347,0.000273,30]
[344428995,1733454670123,-500.0,0.000273,30]
[344428996,1733454670132,-500.0,0.000273,30]
[344428997,1733454670141,-500.0,0.000273,30]
[344428998,1733454670151,-154.25146309,0.000273,30]
[344428999,1733454670160,-546.77200706,0.000273,30]
[344429000,1733454670170,-500.0,0.000273,30]
[344429001,1733454670180,-500.0,0.000273,30]
[344429002,1733454670190,-500.0,0.000273,30]
[344429003,1733454670199,-500.0,0.000273,30]
[344429004,1733454670209,-500.0,0.000273,30]
[344429005,1733454670218,-500.0,0.000273,30]
[344429006,1733454670228,-475.24133958,0.000273,30]
[344429007,1733454670237,-500.0,0.000273,30]
[344429008,1733454670246,-500.0,0.000273,30]
[344429009,1733454670257,-500.0,0.000273,30]
[344429010,1733454670266,-500.0,0.000273,30]
[344429011,1733454670276,-500.0,0.000273,30]
[344429012,1733454670286,-500.0,0.000273,30]
[344429013,1733454670295,-500.0,0.000273,30]
[344429014,1733454670305,-953.81577984,0.000273,30]
[344429015,1733454670315,-500.0,0.000273,30]
[344429016,1733454670326,-500.0,0.000273,30]
[344429017,1733454670336,-500.0,0.000273,30]
[344429018,1733454670345,-500.0,0.000273,30]
[344429019,1733454670356,-500.0,0.000273,30]
[344429020,1733454670365,-500.0,0.000273,30]
[344429021,1733454670375,-500.0,0.000273,30]
[344429022,1733454670384,-500.0,0.000273,30]
[344429023,1733454670394,-500.0,0.000273,30]
[344429024,1733454670403,-500.0,0.000273,30]
[344429025,1733454670413,-500.0,0.000273,30]
[344429026,1733454670422,-500.0,0.000273,30]
[344429027,1733454670432,-500.0,0.000273,30]
[344429028,1733454670441,-1300.0,0.000273,30]
[344429029,1733454670451,-1300.0,0.000273,30]
[344429030,1733454670462,-500.0,0.000273,30]
[344429031,1733454670471,-500.0,0.000273,30]
[344429032,1733454670481,-500.0,0.000273,30]
[344429033,1733454670491,-500.0,0.000273,30]
[344429034,1733454670500,-500.0,0.000273,30]
[344429035,1733454670509,-500.0,0.000273,30]
[344429036,1733454670519,-500.0,0.000273,30]
[344429037,1733454670529,-500.7,0.000273,30]
[344429038,1733454670539,-500.0,0.000273,30]
[344429039,1733454670548,-475.24133958,0.000273,30]
[344429040,1733454670559,-500.0,0.000273,30]
[344429041,1733454670568,-473.21871603,0.000273,30]
[344429042,1733454670578,-500.0,0.000273,30]
[344429043,1733454670588,-500.0,0.000273,30]
[344429044,1733454670597,-500.0,0.000273,30]
[344429045,1733454670607,-500.0,0.000273,30]
[344429046,1733454670616,-500.0,0.000273,30]
[344429047,1733454670626,-500.0,0.000273,30]
[344429048,1733454670635,-500.0,0.000273,30]
[344429049,1733454670645,-500.0,0.000273,30]
[344429050,1733454670655,-500.0,0.000273,30]
[344429051,1733454670665,-500.0,0.000273,30]
[344429052,1733454670675,-473.21871603,0.000273,30]
[344429053,1733454670685,-500.0,0.000273,30]
[344429054,1733454670695,-475.24133958,0.000273,30]
[344429055,1733454670705,-473.21871603,0.000273,30]
[344429056,1733454670714,-475.24133958,0.000273,30]
[344429057,1733454670725,-328.34051654,0.000273,30]
[344429058,1733454670734,-500.0,0.000273,30]
[344429059,1733454670744,-500.0,0.000273,30]
[344429060,1733454670754,-500.0,0.000273,30]
[344429061,1733454670763,-500.0,0.000273,30]
[344429062,1733454670772,-500.0,0.000273,30]
[344429063,1733454670781,-500.0,0.000273,30]
[344429064,1733454670791,-500.0,0.000273,30]
[344429065,1733454670800,-500.0,0.000273,30]
[344429066,1733454670810,-547.48186467,0.000273,30]
[344429067,1733454670819,-500.0,0.000273,30]
[344429068,1733454670829,-500.0,0.000273,30]
[344429069,1733454670838,-500.0,0.000273,30]
[344429070,1733454670847,-500.0,0.000273,30]
[344429071,1733454670862,-500.0,0.000273,30]
[344429072,1733454670872,-500.0,0.000273,30]
[344429073,1733454670886,-500.0,0.000273,30]
[344429074,1733454670896,-500.0,0.000273,30]
[344429075,1733454670906,-500.0,0.000273,30]
[344429076,1733454670916,-500.0,0.000273,30]
[344429077,1733454670926,-500.0,0.000273,30]
[344429078,1733454670936,-500.0,0.000273,30]
[344429079,1733454670946,-551.53972662,0.000273,30]
[344429080,1733454670956,-500.0,0.000273,30]
[344429081,1733454670966,-500.0,0.000273,30]
[344429082,1733454670976,-1500.0,0.00027317,7]
[344429083,1733454670986,-1298.90486599,0.0002736,120]
[344429084,1733454670996,-5000.0,0.00027397,120]
[344429085,1733454671005,-5000.0,0.00027397,120]
[344429086,1733454671016,-5000.0,0.00027397,120]
[344429087,1733454671026,-5000.0,0.00027397,120]
[344429088,1733454671035,-5000.0,0.00027397,120]
[344429089,1733454671045,-5000.0,0.00027397,120]
[344429090,1733454671055,-5000.0,0.00027397,120]
[344429091,1733454671065,-5000.0,0.00027397,120]
[344429092,1733454671075,-5000.0,0.00027397,120]
[344429093,1733454671085,-5000.0,0.00027397,120]
[344429094,1733454671095,-5000.0,0.00027397,120]
[344429095,1733454671105,-5000.0,0.00027397,120]
[344429096,1733454671115,-5000.0,0.00027397,120]
[344429097,1733454671124,-5000.0,0.00027397,120]
[344429098,1733454671134,-5000.0,0.00027397,120]
[344429099,1733454671144,-5000.0,0.00027397,120]
[344429100,1733454671155,-5000.0,0.00027397,120]
[344429101,1733454671166,-5000.0,0.00027397,120]
[344429102,1733454671176,-5000.0,0.00027397,120]
[344429103,1733454671185,-5000.0,0.00027397,120]
[344429104,1733454671196,-200.0,0.00027397,60]
[344429105,1733454671206,-1500.0,0.00027397,7]
[344429106,1733454671216,-500.0,0.00027397,2]
[344429107,1733454671226,-501.0,0.00027397,2]
[344429108,1733454671236,-500.0,0.00027397,2]
[344429109,1733454671246,-500.0,0.00027397,2]
[344429110,1733454671257,-500.0,0.00027397,2]
[344429111,1733454671267,-1000.0,0.00027397,13]
[344429112,1733454671277,-1000.0,0.00027397,13]
[344429113,1733454671287,-1000.0,0.00027397,13]
[344429114,1733454671298,-755.0,0.00027397,13]
[344429115,1733454671308,-500.0,0.00027397,2]
[344429116,1733454671319,-1000.0,0.00027397,13]
[344429117,1733454671328,-1000.0,0.00027397,13]
[344429118,1733454671339,-1000.0,0.00027397,13]
[344429119,1733454671349,-8275.14,0.00027397,15]
[344429120,1733454671359,-500.0,0.00027397,2]
[344429121,1733454671369,-500.0,0.00027397,2]
[344429122,1733454671379,-1000.0,0.00027397,13]
[344429123,1733454671389,-1000.0,0.00027397,13]
[344429124,1733454671400,-1000.0,0.00027397,13]
[344429125,1733454671410,-500.0,0.00027397,2]
[344429126,1733454671420,-1000.0,0.00027397,13]
[344429127,1733454671430,-1000.0,0.00027397,13]
[344429128,1733454671440,-1000.0,0.00027397,13]
[344429129,1733454671451,-1000.0,0.00027397,13]
[344429130,1733454671462,-1000.0,0.00027397,13]
[344429131,1733454671472,-1000.0,0.00027397,13]
[344429132,1733454671482,-1000.0,0.00027397,13]
[344429133,1733454671493,-1000.0,0.00027397,13]
[344429134,1733454671503,-1000.0,0.00027397,13]
[344429135,1733454671513,-1000.0,0.00027397,13]
[344429136,1733454671524,-1000.0,0.00027397,13]
[344429137,1733454671535,-1000.0,0.00027397,13]
[344429138,1733454671546,-1000.0,0.00027397,13]
[344429139,1733454671557,-1000.0,0.00027397,13]
[344429140,1733454671567,-1000.0,0.00027397,13]
[344429141,1733454671577,-1000.0,0.00027397,13]
[344429142,1733454671588,-1000.0,0.00027397,13]
[344429143,1733454671598,-1000.0,0.00027397,13]
[344429144,1733454671872,-500.0,0.00027397,2]
[344429145,1733454671888,-240.0,0.00027397,2]
[344429146,1733454671897,-1000.0,0.00027397,13]
[344429147,1733454671907,-1000.0,0.00027397,13]
[344429148,1733454671917,-401.0,0.00027397,13]
[344429149,1733454671927,-500.0,0.00027397,2]
[344429150,1733454671937,-57291.2,0.00027397,2]
[344429151,1733454671947,-1009.28,0.0002744,2]
[344429152,1733454671957,-1009.28,0.0002744,2]
[344429153,1733454671968,-333.120505,0.00027448,11]
[344429154,1733454671977,-1500.0,0.00027478,7]
[344429155,1733454671987,-191.82813366,0.000275,2]
[344429156,1733454671996,-13454.00081231,0.000275,2]
[344429157,1733454672005,-2015.91594427,0.000275,120]
[344429158,1733454672019,-782.0,0.000275,16]
[344429159,1733454672029,-2110.0,0.00027513,2]
[344429160,1733454672038,-306.82,0.0002755,2]
[344429161,1733454672048,-306.82,0.0002755,2]
[344429162,1733454672057,-1500.0,0.00027558,7]
[344429163,1733454672067,-1700.0,0.00027609,7]
[344429164,1733454672076,-1500.0,0.00027639,7]
[344429165,1733454672086,-150.0,0.00027642,120]
[344429166,1733454672095,-4236.44,0.00027686,2]
[344429167,1733454672105,-500.0,0.000277,15]
[344429168,1733454672114,-1638.15512864,0.000277,7]
[344429169,1733454672124,-1500.0,0.0002772,7]
[344429170,1733454672135,-333.120505,0.00027748,11]
[344429171,1733454672144,-1500.0,0.000278,7]
[344429172,1733454672154,-391.0,0.0002783,15]
[344429173,1733454672163,-150.0,0.00027858,2]
[344429174,1733454672173,-150.0,0.00027858,2]
[344429175,1733454672183,-150.0,0.00027858,2]
[344429176,1733454672193,-150.0,0.00027858,2]
[344429177,1733454672202,-150.0,0.00027858,2]
[344429178,1733454672212,-150.0,0.00027858,2]
[344429179,1733454672222,-150.0,0.00027858,2]
[344429180,1733454672232,-300.53,0.0002786,2]
[344429181,1733454672242,-1500.0,0.00027881,7]
[344429182,1733454672252,-500.0,0.00027899,120]
[344429183,1733454672261,-1500.0,0.00027961,7]
[344429184,1733454672272,-200.0,0.00027984,120]
[344429185,1733454672282,-261232.94323917,0.00027994,2]
[344429186,1733454672291,-140344.47643449,0.00027994,2]
[344429187,1733454672301,-1711.32973104,0.00027994,2]
[344429188,1733454672311,-250000.0,0.00028,15]
[344429189,1733454672321,-567.0,0.00028,2]
[344429190,1733454672330,-1262.0,0.00028,2]
[344429191,1733454672340,-323965.8322314,0.00028,4]
[344429192,1733454672350,-3386.81103206,0.00028,2]
[344429193,1733454672360,-72539.15115871,0.00028,4]
[344429194,1733454672371,-1000.0,0.00028,120]
[344429195,1733454672380,-2004.0,0.00028,2]
[344429196,1733454672390,-631.0,0.00028,2]
[344429197,1733454672400,-1893.0,0.00028,2]
[344429198,1733454672411,-563.0,0.00028,2]
[344429199,1733454672420,-1252.0,0.00028,2]
[344429200,1733454672430,-3761.0,0.00028,2]
[344429201,1733454672440,-816.0,0.00028,2]
[344429202,1733454672449,-3529.0,0.00028,2]
[344429203,1733454672459,-535.0,0.00028,2]
[344429204,1733454672469,-973.0,0.00028,2]
[344429205,1733454672480,-782.0,0.00028,16]
[344429206,1733454672490,-25312.62989705,0.00028,2]
[344429207,1733454672499,-506.25259794,0.00028,2]
[344429208,1733454672510,-5964.0,0.00028,2]
[344429209,1733454672519,-150.0,0.00028,2]
[344429210,1733454672529,-80000.0,0.00028,30]
[344429211,1733454672539,-2110.0,0.00028013,2]
[344429212,1733454672549,-1500.0,0.00028042,7]
[344429213,1733454672558,-150.0,0.00028079,120]
[344429214,1733454672568,-183.47088225,0.000281,120]
[344429215,1733454672577,-637.43,0.00028116,2]
[344429216,1733454672587,-1500.0,0.00028122,7]
[344429217,1733454672597,-333.120505,0.00028148,12]
[344429218,1733454672607,-2400.0,0.00028157,7]
[344429219,1733454672617,-500.0,0.00028157,7]
[344429220,1733454672627,-150.0,0.00028179,120]
[344429221,1733454672636,-115145.00338548,0.000282,2]
[344429222,1733454672646,-1500.0,0.00028203,7]
[344429223,1733454672656,-1500.0,0.00028284,7]
[344429224,1733454672666,-800.699797,0.00028297,120]
[344429225,1733454672676,-1500.0,0.00028364,7]
[344429226,1733454672686,-538.185076,0.000284,2]
[344429227,1733454672696,-306.82,0.000284,2]
[344429228,1733454672706,-1500.0,0.00028445,7]
[344429229,1733454672716,-333.120505,0.00028448,12]
[344429230,1733454672729,-25613.62554847,0.00028471,2]
[344429231,1733454672738,-175.34,0.00028493,2]
[344429232,1733454672748,-648.99633026,0.00028494,2]
[344429233,1733454672758,-782.0,0.000285,17]
[344429234,1733454672769,-2110.0,0.00028513,2]
[344429235,1733454672779,-1500.0,0.00028525,7]
[344429236,1733454672789,-43406.196467,0.00028547,7]
[344429237,1733454672798,-508.65816963,0.00028597,2]
[344429238,1733454672807,-500.0,0.00028606,120]
[344429239,1733454672817,-1500.0,0.00028606,7]
[344429240,1733454672826,-1009.28,0.0002866,2]
[344429241,1733454672836,-1009.28,0.0002866,2]
[344429242,1733454672846,-1500.0,0.00028687,7]
[344429243,1733454672856,-333.120505,0.00028748,12]
[344429244,1733454672868,-1500.0,0.00028767,7]
[344429245,1733454672880,-200.0,0.00028816,120]
[344429246,1733454672890,-1500.0,0.00028848,7]
[344429247,1733454672900,-1500.0,0.00028928,7]
[344429248,1733454672910,-250000.0,0.00029,21]
[344429249,1733454672921,-1000.0,0.00029,4]
[344429250,1733454672931,-12748.0,0.00029,5]
[344429251,1733454672941,-300.0,0.00029,120]
[344429252,1733454672950,-7532.27492971,0.00029,2]
[344429253,1733454672961,-1606.000001,0.00029,120]
[344429254,1733454672970,-150.0,0.00029,120]
[344429255,1733454672979,-782.0,0.00029,17]
[344429256,1733454672989,-800.0,0.00029,2]
[344429257,1733454672999,-800.0,0.00029,2]
[344429258,1733454673008,-1500.0,0.00029009,7]
[344429259,1733454673017,-2231.56,0.00029013,2]
[344429260,1733454673027,-1500.0,0.00029089,7]
[344429261,1733454673037,-150.0,0.00029098,120]
[344429262,1733454673046,-300.69,0.0002911,2]
[344429263,1733454673056,-333.120505,0.00029148,13]
[344429264,1733454673066,-173.94585534,0.00029151,2]
[344429265,1733454673075,-1500.0,0.0002917,7]
[344429266,1733454673084,-150.72,0.00029177,2]
[344429267,1733454673094,-3000.0,0.000292,2]
[344429268,1733454673103,-306.82,0.0002925,2]
[344429269,1733454673113,-1500.0,0.00029251,7]
[344429270,1733454673123,-1700.0,0.00029253,7]
[344429271,1733454673133,-500.0,0.00029255,2]
[344429272,1733454673142,-4640.03833482,0.000293,2]
[344429273,1733454673153,-500.0,0.00029313,120]
[344429274,1733454673164,-1500.0,0.00029331,7]
[344429275,1733454673173,-400.0,0.000294,120]
[344429276,1733454673183,-1500.0,0.00029412,7]
[344429277,1733454673192,-333.120505,0.00029448,13]
[344429278,1733454673202,-626.02,0.00029452,2]
[344429279,1733454673211,-1500.0,0.00029492,7]
[344429280,1733454673221,-782.0,0.000295,18]
[344429281,1733454673231,-173.94585534,0.00029534,2]
[344429282,1733454673240,-1500.0,0.00029573,7]
[344429283,1733454673250,-935.4,0.00029578,30]
[344429284,1733454673259,-200.0,0.00029648,120]
[344429285,1733454673269,-1500.0,0.00029654,7]
[344429286,1733454673280,-1500.0,0.00029734,7]
[344429287,1733454673291,-333.120505,0.00029748,13]
[344429288,1733454673301,-1100.56835,0.0002976,10]
[344429289,1733454673310,-1000.0,0.0002978,10]
[344429290,1733454673320,-1000.0,0.000298,10]
[344429291,1733454673330,-2400.0,0.00029801,7]
[344429292,1733454673340,-500.0,0.00029801,7]
[344429293,1733454673349,-1500.0,0.00029815,7]
[344429294,1733454673359,-1000.0,0.0002982,10]
[344429295,1733454673370,-2136.53,0.00029836,5]
[344429296,1733454673380,-384.42,0.00029836,5]
[344429297,1733454673389,-1000.0,0.0002984,10]
[344429298,1733454673399,-4236.44,0.00029848,2]
[344429299,1733454673408,-1000.0,0.0002986,10]
[344429300,1733454673418,-1009.28,0.0002988,2]
[344429301,1733454673427,-1009.28,0.0002988,2]
[344429302,1733454673436,-1000.0,0.0002988,10]
[344429303,1733454673447,-1110.182,0.0002989,120]
[344429304,1733454673457,-1500.0,0.00029895,7]
[344429305,1733454673467,-74461.7011363,0.000299,2]
[344429306,1733454673477,-1000.0,0.000299,10]
[344429307,1733454673487,-173.94585534,0.00029918,2]
[344429308,1733454673497,-1000.0,0.0002992,10]
[344429309,1733454673506,-1000.0,0.0002994,10]
[344429310,1733454673516,-1000.0,0.0002996,10]
[344429311,1733454673525,-1500.0,0.00029976,7]
[344429312,1733454673536,-1000.0,0.0002998,10]
[344429313,1733454673546,-226.68684048,0.0002999,2]
[344429314,1733454673556,-250000.0,0.0003,22]
[344429315,1733454673566,-14923.83941144,0.0003,2]
[344429316,1733454673576,-15409.00535223,0.0003,2]
[344429317,1733454673587,-1733.62488953,0.0003,2]
[344429318,1733454673596,-1017.30367171,0.0003,2]
[344429319,1733454673606,-2881.95613629,0.0003,2]
[344429320,1733454673617,-1000.0,0.0003,4]
[344429321,1733454673627,-20000.0,0.0003,2]
[344429322,1733454673639,-1000.0,0.0003,20]
[344429323,1733454673648,-20154.0,0.0003,14]
[344429324,1733454673657,-1000.0,0.0003,10]
[344429325,1733454673666,-1000.0,0.0003,10]
[344429326,1733454673676,-1000.0,0.0003,10]
[344429327,1733454673685,-1000.0,0.0003,10]
[344429328,1733454673695,-1000.0,0.0003,10]
[344429329,1733454673704,-1000.0,0.0003,10]
[344429330,1733454673714,-1000.0,0.0003,10]
[344429331,1733454673724,-1000.0,0.0003,10]
[344429332,1733454673734,-1000.0,0.0003,10]
[344429333,1733454673743,-1000.0,0.0003,10]
[344429334,1733454673753,-1000.0,0.0003,10]
[344429335,1733454673763,-1000.0,0.0003,10]
[344429336,1733454673772,-1000.0,0.0003,10]
[344429337,1733454673782,-1000.0,0.0003,10]
[344429338,1733454673791,-1000.0,0.0003,10]
[344429339,1733454673801,-1000.0,0.0003,10]
[344429340,1733454673810,-1000.0,0.0003,10]
[344429341,1733454673820,-1000.0,0.0003,10]
[344429342,1733454673830,-1000.0,0.0003,10]
[344429343,1733454673840,-1000.0,0.0003,10]
[344429344,1733454673850,-1000.0,0.0003,10]
[344429345,1733454673860,-1000.0,0.0003,10]
[344429346,1733454673870,-1000.0,0.0003,10]
[344429347,1733454673885,-1000.0,0.0003,10]
[344429348,1733454673895,-1000.0,0.0003,10]
[344429349,1733454673904,-1000.0,0.0003,10]
[344429350,1733454673914,-1000.0,0.0003,10]
[344429351,1733454673925,-1000.0,0.0003,10]
[344429352,1733454673935,-1000.0,0.0003,10]
[344429353,1733454673944,-2189.86,0.0003,10]
[344429354,1733454673955,-1790.27045008,0.0003,2]
[344429355,1733454673965,-5000.0,0.0003,2]
[344429356,1733454673974,-634.137306,0.0003,2]
[344429357,1733454673984,-227.1922807,0.0003,2]
[344429358,1733454673994,-3000.0,0.0003,30]
[344429359,1733454674005,-200.0,0.0003,120]
[344429360,1733454674015,-261.06433157,0.0003,120]
[344429361,1733454674025,-2047.75698859,0.0003,120]
[344429362,1733454674035,-22641.7496507,0.0003,15]
[344429363,1733454674045,-2000.0,0.0003,120]
[344429364,1733454674055,-200.0,0.0003,20]
[344429365,1733454674064,-3000.0,0.0003,120]
[344429366,1733454674074,-5190.94,0.0003,120]
[344429367,1733454674084,-658.8538338,0.0003,120]
[344429368,1733454674094,-324.13293309,0.0003,5]
[344429369,1733454674104,-158.0,0.0003,5]
[344429370,1733454674114,-4000.9376123,0.0003,30]
[344429371,1733454674124,-209.73333333,0.0003,120]
[344429372,1733454674134,-3488.363873,0.0003,60]
[344429373,1733454674144,-500.0,0.0003,90]
[344429374,1733454674153,-10000.0,0.0003,2]
[344429375,1733454674163,-1564.713451,0.0003,2]
[344429376,1733454674173,-151.0,0.0003,120]
[344429377,1733454674183,-1000.0,0.0003,120]
[344429378,1733454674192,-15264.43276483,0.0003,15]
[344429379,1733454674202,-29500.0,0.0003,10]
[344429380,1733454674212,-2959.92,0.0003,30]
[344429381,1733454674221,-109197.53492788,0.0003,30]
[344429382,1733454674231,-129211.93419362,0.0003,30]
[344429383,1733454674240,-2915.999999,0.0003,7]
[344429384,1733454674250,-50000.0,0.0003,120]
[344429385,1733454674260,-1019.0,0.0003,7]
[344429386,1733454674270,-7721.95383027,0.0003,14]
[344429387,1733454674279,-2000.0,0.0003,2]
[344429388,1733454674289,-893.4932,0.0003,2]
[344429389,1733454674299,-146537.74127177,0.0003,2]
[344429390,1733454674309,-2000.0,0.0003,2]
[344429391,1733454674319,-2002.3107,0.0003,2]
[344429392,1733454674329,-2000.0,0.0003,2]
[344429393,1733454674338,-2121.22179771,0.0003,30]
[344429394,1733454674347,-4426.91687609,0.0003,120]
[344429395,1733454674357,-4229.31769002,0.0003,2]
[344429396,1733454674366,-4229.31769002,0.0003,2]
[344429397,1733454674376,-2000.0,0.0003,2]
[344429398,1733454674386,-2000.0,0.0003,2]
[344429399,1733454674395,-1373.90682629,0.0003,2]
[344429400,1733454674406,-782.0,0.0003,18]
[344429401,1733454674415,-130668.84257682,0.0003,2]
[344429402,1733454674425,-158.0,0.0003,22]
[344429403,1733454674435,-300.0,0.0003,5]
[344429404,1733454674444,-210.0,0.0003,2]
[344429405,1733454674454,-162.65029,0.0003,30]
[344429406,1733454674463,-1000.0,0.0003,11]
[344429407,1733454674473,-435.27,0.00030013,2]
[344429408,1733454674483,-500.0,0.0003002,120]
[344429409,1733454674492,-43406.196467,0.00030047,7]
[344429410,1733454674502,-1500.0,0.00030056,7]
[344429411,1733454674511,-5000.0,0.000301,7]
[344429412,1733454674521,-459.24349434,0.000301,2]
[344429413,1733454674531,-500.0,0.000301,2]
[344429414,1733454674540,-200.0,0.000301,2]
[344429415,1733454674550,-153.84,0.000301,31]
[344429416,1733454674559,-153.84,0.000301,31]
[344429417,1733454674569,-153.84,0.000301,31]
[344429418,1733454674578,-153.84,0.000301,31]
[344429419,1733454674588,-153.84,0.000301,31]
[344429420,1733454674597,-153.84,0.000301,31]
[344429421,1733454674607,-153.84,0.000301,31]
[344429422,1733454674617,-153.84,0.000301,31]
[344429423,1733454674626,-153.84,0.000301,31]